bitfinex/quotes_SOLUSD_20250602
["timestamp","ask_amount","ask_price","bid_price","bid_amount"]
[1748876442006,18.65449635,153.07,153.03,66.74898984]
[1748876442592,18.65449635,153.08,153.04,18.65449635]
[1748876443104,8.09798149,153.11,153.04,37.30414521]
[1748876443105,1.5666,153.11,153.04,37.30414521]
[1748876443304,1.5666,153.11,153.06,18.65449635]
[1748876443500,18.65449635,153.1,153.05,37.30414521]
[1748876443697,18.65449635,153.09,153.05,18.64964886]
[1748876443893,8.09798058,153.11,153.04,18.65449635]
[1748876444111,18.65449635,153.08,153.05,41.54]
[1748876444494,18.65449635,153.09,153.05,41.54]
[1748876444690,1.5666,153.11,153.06,6.5333856]
[1748876444896,18.65449635,153.1,153.06,6.5333856]
[1748876445095,18.65449635,153.1,153.06,25.18788195]
[1748876445619,18.65449635,153.1,153.06,6.5333856]
[1748876445798,18.65449635,153.08,153.05,48.07376663]
[1748876446695,1.5666,153.11,153.05,48.07376663]
[1748876447021,1.5666,153.11,153.05,66.72826298]
[1748876447199,18.65449635,153.08,153.05,48.07376663]
[1748876447397,1.5666,153.11,153.05,48.07376663]
[1748876447608,18.65449635,153.1,153.06,18.65449635]
[1748876448623,18.65449635,153.1,153.07,6.53295877]
[1748876448833,1.5666,153.11,153.07,6.53295877]
[1748876449211,12.73415501,153.13,153.07,41.51985206]
[1748876449417,18.65449635,153.12,153.07,41.51985206]
[1748876449927,18.65449635,153.1,153.07,6.53295877]
[1748876450323,14.23791776,153.15,153.07,6.53295877]
[1748876450628,18.65449635,153.1,153.06,25.18303446]
[1748876450834,18.65449635,153.1,153.05,148.98964886]
[1748876450835,18.65449635,153.07,153.05,95.33369222]
[1748876451131,18.65449635,153.06,153.04,6.53413495]
[1748876451630,18.65449635,153.05,153.04,6.53413495]
[1748876451817,18.65449635,153.05,153.03,6.53447893]
[1748876452222,18.65449635,153.06,153.03,6.53447893]
[1748876452614,18.65449635,153.07,153.03,6.53447893]
[1748876453012,7.7717,153.09,153.03,6.53447893]
[1748876453331,18.65449635,153.07,153.03,6.53447893]
[1748876453933,18.65449635,153.07,153.03,48.05447893]
[1748876454616,18.65449635,153.06,153.03,48.05447893]
[1748876455904,18.65449635,153.07,153.03,48.05447893]
[1748876456337,18.65449635,153.07,153.03,66.70897528]
[1748876456635,18.65449635,153.09,153.05,18.65449635]
[1748876457213,18.65449635,153.08,153.04,37.30414521]
[1748876457611,18.65449635,153.1,153.06,18.65449635]
[1748876457813,18.65449635,153.09,153.07,6.53295877]
[1748876459825,13.17849379,153.13,153.06,6.5333856]
[1748876460113,18.65449635,153.1,153.06,43.83753081]
[1748876460314,18.65449635,153.1,153.06,25.18303446]
[1748876460521,18.65449635,153.09,153.06,25.18303446]
[1748876461034,13.17839866,153.13,153.06,25.18303446]
[1748876461035,18.65449635,153.1,153.06,25.18303446]
[1748876461531,18.65449635,153.1,153.06,43.83753081]
[1748876461712,18.65449635,153.1,153.06,25.18303446]
[1748876462109,18.65449635,153.1,153.06,43.83753081]
[1748876462732,18.65449635,153.09,153.07,41.5]
[1748876463528,18.65449635,153.08,153.07,41.5]
[1748876463921,18.65449635,153.08,153.05,6.53367329]
[1748876464121,18.65449635,153.07,153.05,6.53367329]
[1748876464628,6.53102365,153.12,153.05,25.18816964]
[1748876464837,18.65449635,153.1,153.05,25.18816964]
[1748876465046,18.65449635,153.09,153.05,25.18816964]
[1748876465231,18.65449635,153.09,153.05,6.53367329]
[1748876466331,6.53102365,153.12,153.05,6.53367329]
[1748876466332,18.65449635,153.08,153.05,6.53367329]
[1748876467236,18.65449635,153.09,153.05,6.53367329]
[1748876467920,6.53095727,153.12,153.05,6.53367329]
[1748876468122,18.65449635,153.09,153.05,25.18816964]
[1748876468436,18.65449635,153.1,153.05,25.18816964]
[1748876468655,13.17838036,153.13,153.06,18.65449635]
[1748876468816,18.65449635,153.1,153.06,18.65449635]
[1748876469021,18.65449635,153.1,153.05,25.18816964]
[1748876469721,18.65449635,153.09,153.05,25.18816964]
[1748876470221,18.65449635,153.07,153.05,6.53367329]
[1748876471553,18.65449635,153.07,153.04,17.79417526]
[1748876471722,18.65449635,153.07,153.04,11.26]
[1748876471924,18.65449635,153.07,152.99,6.53637492]
[1748876471925,37.3089927,153.05,152.99,6.53637492]
[1748876472150,18.65449635,153.01,152.99,6.53637492]
[1748876473039,18.65449635,153.03,152.99,6.53637492]
[1748876473418,18.65449635,153.03,152.99,25.19087127]
[1748876473931,18.65449635,153.03,152.99,6.53637492]
[1748876474447,18.65449635,153.02,152.99,6.53637492]
[1748876474624,18.65449635,153.03,152.99,25.19087127]
[1748876474944,18.65449635,153.02,152.99,6.53637492]
[1748876475553,18.65449635,153.03,152.99,25.19087127]
[1748876476352,1.5273,153.08,153.01,18.65449635]
[1748876476553,18.65449635,153.08,153.03,18.65449635]
[1748876476854,18.65449635,153.08,153.03,60.13449635]
[1748876477151,18.65449635,153.09,153.04,25.18873576]
[1748876477335,6.3605,153.11,153.04,25.18873576]
[1748876477538,18.65449635,153.08,153.04,25.18873576]
[1748876477842,18.65449635,153.08,153.04,6.53423941]
[1748876478961,18.65449635,153.08,153.04,25.18873576]
[1748876479769,18.65449635,153.08,153.04,6.53423941]
[1748876480067,18.65449635,153.07,153.04,6.53423941]
[1748876480949,18.65449635,153.08,153.04,25.18873576]
[1748876483067,18.65449635,153.07,153.04,6.53423941]
[1748876485150,18.65449635,153.05,153.03,6.53452541]
[1748876485569,6.3605,153.11,153.02,17.79502994]
[1748876485570,18.65449635,153.04,153.02,17.79502994]
[1748876485867,18.65449635,153.03,153.01,6.53533863]
[1748876487050,18.65449635,153.02,153.0,6.53575197]
[1748876487246,18.65449635,153.01,153.0,6.53575197]
[1748876487448,18.65449635,153.02,153.0,6.53575197]
[1748876488174,18.65449635,153.02,152.98,116.00414521]
[1748876488673,18.65449635,153.01,152.98,17.77663621]
[1748876489772,18.65449635,153.02,152.98,17.77663621]
[1748876489959,6.53399395,153.05,152.98,6.53663621]
[1748876490164,18.65449635,153.01,152.97,6.53722952]
[1748876490358,18.65449635,153.01,152.97,25.19172587]
[1748876491259,18.65449635,153.01,152.97,6.53722952]
[1748876491447,18.65449635,152.98,152.96,100.59755581]
[1748876491654,18.65449635,152.97,152.95,6.53773082]
[1748876491851,44.65449635,153.04,152.94,11.24]
[1748876491852,18.65449635,152.96,152.94,11.24]
[1748876492853,18.65449635,152.96,152.93,6.53883948]
[1748876493057,18.65449635,152.94,152.89,18.64964886]
[1748876493264,18.65449635,152.93,152.89,51.190299]
[1748876494188,18.65449635,152.92,152.89,6.54065014]
[1748876494365,18.65449635,152.91,152.89,6.54065014]
[1748876494562,18.65449635,152.9,152.88,6.54097517]
[1748876494773,18.65449635,152.89,152.88,6.54097517]
[1748876495370,18.65449635,152.9,152.87,6.54150585]
[1748876496878,12.60846815,152.93,152.87,6.54150585]
[1748876496879,18.65449635,152.89,152.87,6.54150585]
[1748876497485,18.65449635,152.89,152.86,94.06]
[1748876497666,18.65449635,152.88,152.8,16.36033453]
[1748876497865,18.65449635,152.85,152.81,29.88964886]
[1748876498174,18.65449635,152.85,152.82,26.0]
[1748876498686,18.65449635,152.83,152.8,6.54450261]
[1748876498867,18.65449635,152.81,152.8,6.54450261]
[1748876499288,18.65449635,152.81,152.78,6.54535934]
[1748876499586,18.65449635,152.81,152.79,26.0]
[1748876500301,18.65449635,152.8,152.76,11.24]
[1748876500478,18.65449635,152.79,152.77,6.54578778]
[1748876500892,18.65449635,152.79,152.77,32.54578778]
[1748876501081,18.65449635,152.8,152.77,32.54578778]
[1748876501279,18.65449635,152.79,152.77,32.54578778]
[1748876501899,18.65449635,152.78,152.76,11.24]
[1748876502069,18.65449635,152.77,152.76,11.24]
[1748876502271,18.65449635,152.77,152.73,8.33333333]
[1748876502471,18.65449635,152.74,152.73,8.33333333]
[1748876504373,12.81984998,152.78,152.73,8.33333333]
[1748876504592,18.65449635,152.74,152.73,8.33333333]
[1748876506372,20.18329635,152.74,152.73,8.33333333]
[1748876508004,26.87253137,152.74,152.73,8.33333333]
[1748876511422,18.65449635,152.74,152.73,8.33333333]
[1748876512003,25.2015698,152.74,152.73,8.33333333]
[1748876512397,18.65449635,152.74,152.73,8.33333333]
[1748876512908,27.99865133,152.78,152.73,8.33333333]
[1748876512909,11.35076819,152.78,152.73,8.33333333]
[1748876513226,18.65449635,152.8,152.76,18.65449635]
[1748876513405,18.65449635,152.81,152.77,18.65449635]
[1748876513733,18.65449635,152.78,152.73,59.53532034]
[1748876514023,18.65449635,152.77,152.73,59.53532034]
[1748876514224,18.65449635,152.78,152.73,59.53532034]
[1748876515406,18.65449635,152.76,152.73,14.88082399]
[1748876515807,18.65449635,152.77,152.73,33.53532034]
[1748876516429,18.65449635,152.77,152.73,14.88082399]
[1748876517068,18.65449635,152.78,152.73,33.53532034]
[1748876517826,18.65449635,152.78,152.73,49.90407565]
[1748876518027,18.65449635,152.77,152.73,14.88082399]
[1748876518258,18.65449635,152.76,152.73,14.88082399]
[1748876520756,18.65449635,152.81,152.75,18.65449635]
[1748876520978,94.18,152.85,152.77,18.65449635]
[1748876521287,18.65449635,152.81,152.77,18.65449635]
[1748876521490,18.65449635,152.8,152.75,18.64964886]
[1748876521655,18.65449635,152.79,152.75,37.30414521]
[1748876521854,7.7412,152.9,152.79,18.64964886]
[1748876522081,7.7412,152.9,152.83,18.65449635]
[1748876522263,18.65449635,152.89,152.84,18.65449635]
[1748876522475,18.65449635,152.88,152.83,18.65449635]
[1748876522684,18.65449635,152.87,152.84,6.54278984]
[1748876522985,18.65449635,152.88,152.84,6.54278984]
[1748876523398,18.65449635,152.86,152.82,37.30414521]
[1748876523686,18.65449635,152.86,152.82,18.65449635]
[1748876524059,18.65449635,152.86,152.82,25.19799406]
[1748876524551,18.65449635,152.85,152.82,6.54349771]
[1748876524749,18.65449635,152.86,152.82,25.19799406]
[1748876525154,31.12335877,152.86,152.82,37.66685648]
[1748876525783,14.28152497,152.9,152.83,31.12335877]
[1748876525955,31.12335877,152.87,152.83,31.12335877]
[1748876526154,31.12335877,152.87,152.82,54.02597177]
[1748876527896,31.12335877,152.89,152.86,6.54193379]
[1748876529078,31.12335877,152.87,152.85,6.54224456]
[1748876529283,31.12335877,152.86,152.83,6.54311861]
[1748876529467,31.12335877,152.87,152.83,37.66647738]
[1748876529991,31.12335877,152.87,152.83,6.54311861]
[1748876530362,31.12335877,152.88,152.83,37.66647738]
[1748876530577,26.0,152.91,152.84,49.77300763]
[1748876530770,6.53946613,152.92,152.84,49.77300763]
[1748876530771,31.12335877,152.89,152.84,49.77300763]
[1748876531167,31.12335877,152.88,152.84,18.64964886]
[1748876531387,31.12335877,152.88,152.84,49.77300763]
[1748876531575,31.12335877,152.89,152.84,49.77300763]
[1748876531975,31.12335877,152.88,152.85,6.54236179]
[1748876532970,31.12335877,152.89,152.85,6.54236179]
[1748876533478,31.12335877,152.88,152.85,6.54236179]
[1748876534196,31.12335877,152.87,152.85,6.54236179]
[1748876534376,31.12335877,152.86,152.83,6.54321795]
[1748876534769,31.12335877,152.87,152.83,6.54321795]
[1748876534975,31.12335877,152.88,152.83,54.0246216]
[1748876535171,31.12335877,152.88,152.84,31.12335877]
[1748876536093,31.12335877,152.88,152.83,95.4646216]
[1748876536799,6.53952346,152.92,152.84,31.12335877]
[1748876536979,31.12335877,152.88,152.84,31.12335877]
[1748876537395,31.12335877,152.87,152.83,95.4646216]
[1748876538878,31.12335877,152.88,152.84,31.12335877]
[1748876539493,26.14216157,152.93,152.85,31.12335877]
[1748876539702,31.12335877,152.9,152.86,31.12335877]
[1748876539999,31.12335877,152.89,152.85,31.12335877]
[1748876540505,31.12335877,152.89,152.85,6.54236179]
[1748876541221,6.53956212,152.92,152.82,88.8]
[1748876541222,31.12335877,152.86,152.82,88.8]
[1748876541523,31.12335877,152.85,152.82,95.34349436]
[1748876541676,31.12335877,152.84,152.82,6.54349436]
[1748876541877,31.12335877,152.85,152.82,6.54349436]
[1748876542604,31.12335877,152.85,152.81,25.1937232]
[1748876543104,31.12335877,152.86,152.81,72.67726782]
[1748876543677,31.12335877,152.85,152.81,56.31708197]
[1748876544315,31.12335877,152.84,152.81,6.54407434]
[1748876544679,31.12335877,152.83,152.81,6.54407434]
[1748876544981,31.12335877,152.82,152.77,18.64964886]
[1748876545177,18.6930425,152.79,152.77,6.54578778]
[1748876545480,1.67156157,152.85,152.77,6.54578778]
[1748876545481,18.6930425,152.8,152.77,6.54578778]
[1748876547189,18.6930425,152.79,152.77,6.54578778]
[1748876547380,31.15283594,152.79,152.77,6.54578778]
[1748876547788,31.15283594,152.8,152.77,6.54578778]
[1748876548504,6.54330816,152.83,152.77,6.54578778]
[1748876548702,31.15283594,152.8,152.77,6.54578778]
[1748876550900,31.15283594,152.79,152.77,6.54578778]
[1748876552304,31.15283594,152.78,152.77,6.54578778]
[1748876552501,31.15283594,152.78,152.74,44.64964886]
[1748876552703,31.15283594,152.78,152.74,75.8024848]
[1748876556795,31.15283594,152.77,152.73,11.2]
[1748876556998,31.15283594,152.76,152.73,11.2]
[1748876557201,31.15283594,152.75,152.73,11.2]
[1748876557798,31.15283594,152.76,152.73,11.2]
[1748876558319,31.15283594,152.78,152.74,31.15283594]
[1748876558721,31.15283594,152.78,152.73,42.35283594]
[1748876559228,6.3521,152.8,152.74,31.15283594]
[1748876559417,31.15283594,152.78,152.74,31.15283594]
[1748876559815,31.15283594,152.78,152.73,42.35283594]
[1748876560328,31.15283594,152.77,152.73,42.35283594]
[1748876562799,12.89662996,152.8,152.73,11.2]
[1748876562800,31.15283594,152.75,152.73,11.2]
[1748876563225,31.15283594,152.75,152.71,26.0]
[1748876563905,31.15283594,152.74,152.71,26.0]
[1748876565613,31.15283594,152.74,152.7,75.8024848]
[1748876566835,31.15283594,152.74,152.7,49.8024848]
[1748876567417,31.15283594,152.75,152.71,31.15283594]
[1748876569230,18.70131682,152.75,152.71,18.70131682]
[1748876569727,18.70131682,152.76,152.71,18.70131682]
[1748876570031,1.5047,152.83,152.75,18.64964886]
[1748876570236,25.03881682,152.84,152.79,18.70131682]
[1748876570718,18.70131682,152.83,152.78,18.70131682]
[1748876571932,18.70131682,152.81,152.77,18.70131682]
[1748876572627,18.70131682,152.81,152.76,18.64964886]
[1748876572827,18.70131682,152.81,152.76,37.35096568]
[1748876573332,18.70131682,152.81,152.76,18.64964886]
[1748876573543,18.70131682,152.81,152.77,6.54578778]
[1748876574136,18.70131682,152.78,152.71,32.74179817]
[1748876574311,18.70131682,152.76,152.71,71.26131682]
[1748876574508,18.70131682,152.76,152.72,18.64964886]
[1748876574930,18.70131682,152.77,152.72,37.35096568]
[1748876576539,18.70131682,152.76,152.72,37.35096568]
[1748876576834,18.70131682,152.76,152.71,71.26131682]
[1748876577815,18.70131682,152.75,152.71,71.26131682]
[1748876579525,18.70131682,152.76,152.71,71.26131682]
[1748876580232,18.70131682,152.75,152.72,6.54793085]
[1748876581732,18.70131682,152.73,152.72,6.54793085]
[1748876582238,18.70131682,152.73,152.68,60.04964886]
[1748876582439,18.70131682,152.7,152.67,11.16]
[1748876583236,18.70131682,152.71,152.67,29.86131682]
[1748876583541,18.70131682,152.71,152.67,78.78650307]
[1748876587730,1.5561,152.74,152.67,78.78650307]
[1748876588045,18.70131682,152.73,152.68,18.70131682]
[1748876588237,18.70131682,152.72,152.68,18.70131682]
[1748876589318,18.70131682,152.72,152.69,6.54921736]
[1748876589939,18.70131682,152.71,152.69,6.54921736]
[1748876590243,18.70131682,152.72,152.69,6.54921736]
[1748876590447,18.70131682,152.73,152.69,6.54921736]
[1748876590643,18.70131682,152.72,152.69,6.54921736]
[1748876591024,18.70131682,152.71,152.69,6.54921736]
[1748876591338,18.70131682,152.7,152.68,6.54953498]
[1748876591731,6.54744871,152.74,152.67,11.16]
[1748876591732,18.70131682,152.69,152.67,11.16]
[1748876591939,18.70131682,152.69,152.66,6.55023763]
[1748876592134,18.70131682,152.68,152.66,6.55023763]
[1748876593354,18.70131682,152.68,152.64,25.20101154]
[1748876593936,18.70131682,152.68,152.64,43.90232836]
[1748876594346,18.70131682,152.68,152.64,60.28073506]
[1748876594946,18.70131682,152.69,152.65,18.70131682]
[1748876595257,18.70131682,152.7,152.64,67.57941824]
[1748876595461,18.70131682,152.69,152.64,127.66073506]
[1748876595665,18.70131682,152.69,152.65,18.70131682]
[1748876595953,18.70131682,152.69,152.64,108.95941824]
[1748876596150,18.70131682,152.69,152.65,18.70131682]
[1748876596318,18.70131682,152.7,152.66,18.70131682]
[1748876596746,18.70131682,152.7,152.64,108.95941824]
[1748876596950,1.5672,152.72,152.65,18.70131682]
[1748876596951,18.70131682,152.69,152.65,18.70131682]
[1748876597435,18.70131682,152.69,152.66,6.55050438]
[1748876598749,18.70131682,152.7,152.66,25.2518212]
[1748876600745,18.70131682,152.7,152.66,6.55050438]
[1748876601540,18.70131682,152.69,152.66,6.55050438]
[1748876603355,12.6927,152.76,152.68,18.70131682]
[1748876603539,12.6927,152.76,152.67,18.64964886]
[1748876603540,18.70131682,152.73,152.69,18.70131682]
[1748876603854,1.5127,152.76,152.72,18.70131682]
[1748876604059,11.55594617,152.79,152.73,18.70131682]
[1748876604358,18.70131682,152.79,152.74,18.70131682]
[1748876604557,1.5127,152.86,152.78,18.70131682]
[1748876604732,18.70131682,152.83,152.79,6.54493095]
[1748876605122,18.70131682,152.81,152.76,29.84131682]
[1748876605327,50.40988971,152.86,152.76,11.14]
[1748876605328,18.70131682,152.8,152.76,11.14]
[1748876605523,18.70131682,152.8,152.77,6.54562078]
[1748876605728,18.70131682,152.81,152.77,6.54562078]
[1748876607339,6.54353171,152.83,152.77,6.54562078]
[1748876607659,18.70131682,152.8,152.77,6.54562078]
[1748876608035,18.70131682,152.78,152.76,11.14]
[1748876608354,18.70131682,152.78,152.75,6.54635416]
[1748876608861,18.70131682,152.8,152.75,25.24767098]
[1748876610090,18.70131682,152.8,152.75,41.61428309]
[1748876610949,18.70131682,152.81,152.77,18.70131682]
[1748876611250,18.70131682,152.8,152.75,22.91296627]
[1748876611461,18.70131682,152.8,152.75,41.61428309]
[1748876611675,0.14216157,152.82,152.75,6.54635416]
[1748876611860,18.70131682,152.78,152.75,6.54635416]
[1748876612173,18.70131682,152.78,152.74,6.54707345]
[1748876612378,18.70131682,152.76,152.74,6.54707345]
[1748876613367,18.70131682,152.76,152.73,6.54750212]
[1748876616183,18.70131682,152.77,152.73,22.91625743]
[1748876616356,18.70131682,152.76,152.73,6.54750212]
[1748876617066,18.70131682,152.75,152.73,6.54750212]
[1748876618383,18.70131682,152.74,152.72,17.68776978]
[1748876620282,18.70131682,152.73,152.7,32.54840143]
[1748876620457,0.42648471,152.78,152.7,32.54840143]
[1748876620657,18.70131682,152.73,152.7,32.54840143]
[1748876622076,6.54578778,152.77,152.7,32.54840143]
[1748876622264,18.70131682,152.73,152.7,32.54840143]
[1748876624185,27.581,152.8,152.7,32.54840143]
[1748876624374,18.70131682,152.73,152.7,32.54840143]
[1748876624759,18.70131682,152.72,152.7,32.54840143]
[1748876625064,18.70131682,152.73,152.7,32.54840143]
[1748876627168,18.70131682,152.72,152.7,32.54840143]
[1748876627385,18.70131682,152.72,152.68,27.51393513]
[1748876627386,18.70131682,152.71,152.68,17.68947739]
[1748876627683,18.70131682,152.69,152.68,11.14]
[1748876627883,18.70131682,152.69,152.68,6.54964631]
[1748876628568,18.70131682,152.69,152.66,47.87033465]
[1748876628770,18.70131682,152.68,152.66,6.55033465]
[1748876630166,18.70131682,152.68,152.65,32.55081319]
[1748876630365,18.70131682,152.72,152.64,11.14]
[1748876630366,18.70131682,152.66,152.64,11.14]
[1748876630564,18.70131682,152.65,152.6,29.78964886]
[1748876630808,18.70131682,152.64,152.61,26.0]
[1748876631698,18.70131682,152.63,152.61,6.55265054]
[1748876632000,18.70131682,152.63,152.62,26.0]
[1748876632562,18.70131682,152.65,152.62,26.0]
[1748876633501,18.70131682,152.63,152.56,7.9186]
[1748876633692,18.70131682,152.58,152.48,6.55823714]
[1748876633870,26.0,152.59,152.49,16.3937199]
[1748876634068,26.0,152.59,152.49,57.7137199]
[1748876634282,18.70131682,152.52,152.49,42.3937199]
[1748876634480,18.70131682,152.51,152.49,41.32]
[1748876634681,18.70131682,152.56,152.49,41.32]
[1748876634881,18.70131682,152.51,152.48,6.55823714]
[1748876635075,18.70131682,152.5,152.49,41.32]
[1748876635284,18.70131682,152.5,152.48,32.55823714]
[1748876635773,18.70131682,152.56,152.48,32.55823714]
[1748876636209,18.70131682,152.51,152.48,32.55823714]
[1748876636877,18.70131682,152.5,152.48,32.55823714]
[1748876637592,18.70131682,152.51,152.48,32.55823714]
[1748876638293,18.70131682,152.5,152.48,32.55823714]
[1748876638612,18.70131682,152.49,152.46,11.12]
[1748876638779,18.70131682,152.47,152.46,59.01895417]
[1748876638975,18.70131682,152.47,152.46,37.12]
[1748876639197,6.55699914,152.51,152.46,37.12]
[1748876639386,18.70131682,152.47,152.46,37.12]
[1748876639710,18.70131682,152.47,152.46,43.67909746]
[1748876639877,18.70131682,152.47,152.46,26.0]
[1748876640198,0.14216157,152.51,152.46,26.0]
[1748876640398,18.70131682,152.47,152.46,26.0]
[1748876640577,18.70131682,152.47,152.46,32.55909746]
[1748876640772,18.70131682,152.47,152.45,0.9083834]
[1748876640773,25.2600857,152.47,152.45,0.9083834]
[1748876640977,18.70131682,152.46,152.45,0.9083834]
[1748876641592,19.12780153,152.46,152.45,0.9083834]
[1748876641990,0.42648471,152.46,152.45,0.9083834]
[1748876642190,6.55876888,152.47,152.45,0.9083834]
[1748876642397,18.84347839,152.46,152.45,0.9083834]
[1748876642988,18.84347839,152.46,152.44,8.33333333]
[1748876642989,6.98559925,152.46,152.44,8.33333333]
[1748876643195,19.12780153,152.45,152.44,8.33333333]
[1748876643794,0.14216157,152.45,152.44,8.33333333]
[1748876644006,6.4714,152.48,152.44,8.33333333]
[1748876644007,6.4714,152.48,152.44,14.8931853]
[1748876644184,45.98479759,152.51,152.44,33.59450212]
[1748876644506,18.70131682,152.49,152.44,49.99439716]
[1748876644677,18.70131682,152.49,152.45,26.0]
[1748876644883,18.70131682,152.48,152.46,6.55909746]
[1748876645099,18.70131682,152.49,152.46,6.55909746]
[1748876645897,18.70131682,152.48,152.46,6.55909746]
[1748876647207,31.2761504,152.48,152.46,6.55909746]
[1748876647534,31.2761504,152.49,152.46,6.55909746]
[1748876649715,31.2761504,152.48,152.46,6.55909746]
[1748876650700,31.2761504,152.48,152.42,11.12]
[1748876650701,31.2761504,152.47,152.42,52.48]
[1748876650901,31.2761504,152.45,152.44,26.0]
[1748876651101,31.2761504,152.47,152.44,26.0]
[1748876651315,31.2761504,152.48,152.44,26.0]
[1748876651621,31.2761504,152.47,152.44,67.36]
[1748876651925,31.2761504,152.46,152.44,26.0]
[1748876652228,31.2761504,152.45,152.43,6.56038837]
[1748876652608,31.2761504,152.44,152.41,17.7009348]
[1748876652813,31.2761504,152.42,152.41,17.7009348]
[1748876653008,31.2761504,152.42,152.41,11.14]
[1748876653822,31.2761504,152.42,152.39,8.33333333]
[1748876654012,31.2761504,152.41,152.39,8.33333333]
[1748876654806,31.2761504,152.41,152.39,14.89528526]
[1748876655025,31.2761504,152.42,152.39,14.89528526]
[1748876655427,0.28432314,152.48,152.39,62.57671159]
[1748876655723,31.2761504,152.42,152.39,31.30056119]
[1748876656112,31.2761504,152.42,152.39,14.89528526]
[1748876657925,16.68021779,152.48,152.4,26.0]
[1748876658130,31.2761504,152.41,152.39,8.33333333]
[1748876658326,31.2761504,152.4,152.39,8.33333333]
[1748876658913,6.0949,152.44,152.39,8.33333333]
[1748876659127,31.2761504,152.41,152.39,8.33333333]
[1748876659808,31.2761504,152.41,152.39,14.8954437]
[1748876660806,0.42648471,152.47,152.39,31.30071963]
[1748876661133,31.2761504,152.46,152.41,37.83739966]
[1748876661315,31.2761504,152.46,152.42,41.38]
[1748876662023,31.2761504,152.46,152.43,6.56038837]
[1748876663609,31.2761504,152.45,152.43,6.56038837]
[1748876663815,31.2761504,152.46,152.43,6.56038837]
[1748876664622,45.98479759,152.51,152.43,91.3575097]
[1748876664816,31.2761504,152.47,152.43,91.3575097]
[1748876665010,31.2761504,152.47,152.43,60.0813593]
[1748876665612,31.2761504,152.46,152.43,60.0813593]
[1748876666216,31.2761504,152.47,152.43,60.0813593]
[1748876666744,31.2761504,152.47,152.43,91.3575097]
[1748876667142,31.2761504,152.48,152.43,91.3575097]
[1748876667434,18.76740459,152.49,152.44,18.76740459]
[1748876667627,64.75220218,152.51,152.47,18.76740459]
[1748876667826,45.98479759,152.51,152.48,60.12740459]
[1748876668726,18.76740459,152.53,152.48,60.12740459]
[1748876668926,13.15388144,152.56,152.49,18.76740459]
[1748876668927,6.599,152.56,152.49,18.76740459]
[1748876669127,18.76740459,152.53,152.5,6.55737704]
[1748876669523,18.76740459,152.52,152.5,6.55737704]
[1748876671551,18.76740459,152.51,152.49,11.12]
[1748876671728,6.55612393,152.53,152.47,26.0]
[1748876671729,18.76740459,152.5,152.47,32.55854575]
[1748876671933,18.76740459,152.48,152.46,6.55894231]
[1748876672130,18.76740459,152.47,152.46,6.55894231]
[1748876672643,18.76740459,152.47,152.45,6.55952771]
[1748876672850,18.76740459,152.46,152.45,6.55952771]
[1748876673940,18.76740459,152.46,152.44,47.91995801]
[1748876674533,18.76740459,152.46,152.44,6.55995801]
[1748876674851,18.76740459,152.46,152.44,47.91995801]
[1748876675353,18.76740459,152.46,152.43,55.76964886]
[1748876675354,18.76740459,152.45,152.43,17.68022807]
[1748876675654,31.2934593,152.44,152.43,6.56022807]
[1748876676650,31.2934593,152.45,152.43,6.56022807]
[1748876678051,31.2934593,152.47,152.43,22.961199]
[1748876678347,31.2934593,152.46,152.43,22.961199]
[1748876679634,6.6444,152.49,152.43,22.961199]
[1748876679837,31.2934593,152.46,152.43,22.961199]
[1748876680254,13.20224424,152.49,152.43,6.56022807]
[1748876680445,13.20224424,152.49,152.43,32.56022807]
[1748876680629,13.20224424,152.49,152.41,32.56124926]
[1748876680630,31.2934593,152.44,152.41,32.56124926]
[1748876680954,31.2934593,152.43,152.41,32.56124926]
[1748876681153,31.2934593,152.44,152.41,32.56124926]
[1748876681639,31.2934593,152.43,152.41,32.56124926]
[1748876681842,31.2934593,152.42,152.39,14.89504112]
[1748876682032,0.28432314,152.47,152.39,14.89504112]
[1748876682033,31.2934593,152.4,152.39,14.89504112]
[1748876684741,31.25696615,152.4,152.39,14.89504112]
[1748876685533,6.56007402,152.44,152.39,14.89504112]
[1748876685849,31.2934593,152.4,152.39,8.33333333]
[1748876688638,31.2934593,152.4,152.39,14.8954437]
[1748876688956,1.5745,152.43,152.39,14.8954437]
[1748876689159,31.2934593,152.4,152.39,14.8954437]
[1748876689361,31.2934593,152.4,152.39,8.33333333]
[1748876689860,31.2934593,152.4,152.39,14.8954437]
[1748876690054,31.2934593,152.4,152.39,8.33333333]
[1748876691849,6.56131496,152.41,152.39,8.33333333]
[1748876692154,31.2934593,152.4,152.39,8.33333333]
[1748876692767,31.2934593,152.4,152.39,14.8954437]
[1748876693279,6.5951,152.42,152.39,14.8954437]
[1748876693456,1.5745,152.43,152.39,14.8954437]
[1748876693792,31.2934593,152.43,152.39,62.59417893]
[1748876693950,31.2934593,152.44,152.4,31.2934593]
[1748876694457,31.2934593,152.45,152.41,11.1]
[1748876694656,31.2934593,152.44,152.41,11.1]
[1748876695287,31.2934593,152.44,152.42,6.56081879]